bitfinex-derivatives/quotes_ETHF0:USTF0_20250704
["timestamp","ask_amount","ask_price","bid_price","bid_amount"]
[1751660441781,0.80216,2492.9,2492.8,13.50657]
[1751660442282,0.80214,2493.0,2492.8,13.50657]
[1751660442581,0.80214,2493.0,2492.9,0.80216]
[1751660444584,0.80214,2493.0,2492.8,2.19156]
[1751660444772,0.80214,2493.0,2492.8,1.3894]
[1751660444977,0.80214,2493.0,2492.9,0.80216]
[1751660445474,0.6956,2493.2,2492.8,1.3894]
[1751660445682,0.80217,2492.9,2492.7,11.9999]
[1751660445884,0.80217,2492.9,2492.7,0.6719]
[1751660446583,0.80217,2492.9,2492.8,0.80219]
[1751660446978,0.80219,2492.8,2492.7,1.4741]
[1751660447380,0.6966,2493.1,2492.7,1.47412]
[1751660447580,2.0201,2493.1,2492.7,1.47412]
[1751660447780,0.80217,2492.9,2492.7,1.47412]
[1751660448180,0.80219,2492.8,2492.7,1.47412]
[1751660448884,2.0201,2493.1,2492.8,0.80217]
[1751660448885,0.80217,2492.9,2492.8,0.80217]
[1751660449685,0.80219,2492.8,2492.7,1.4741]
[1751660449878,4.02538,2493.1,2492.4,12.6613]
[1751660450082,0.6727,2492.7,2492.6,0.80225]
[1751660451788,1.47492,2492.7,2492.6,0.80225]
[1751660453577,0.6727,2492.7,2492.4,1.3343]
[1751660453777,1.47494,2492.7,2492.6,0.80225]
[1751660454184,0.80227,2492.6,2492.5,0.80226]
[1751660454383,0.8023,2492.5,2492.4,0.8023]
[1751660454983,0.80228,2492.6,2492.5,0.80228]
[1751660456783,0.8023,2492.5,2492.4,0.8023]
[1751660457486,0.6727,2492.7,2492.5,0.80226]
[1751660457487,0.80227,2492.6,2492.5,0.80226]
[1751660458689,0.80232,2492.5,2492.4,0.80231]
[1751660459578,0.80228,2492.5,2492.4,0.80231]
[1751660459779,0.80227,2492.6,2492.5,0.80226]
[1751660460587,0.6727,2492.7,2492.1,2.0645]
[1751660460588,0.80234,2492.4,2492.3,0.80231]
[1751660460790,1.51751,2492.5,2492.4,0.80232]
[1751660461486,0.80237,2492.3,2492.2,0.80236]
[1751660461693,0.80234,2492.4,2492.3,0.80233]
[1751660462990,1.5175,2492.5,2492.4,0.80232]
[1751660463182,0.7152,2492.5,2492.4,0.80232]
[1751660463891,1.51748,2492.5,2492.4,0.80232]
[1751660464289,0.80234,2492.4,2492.3,0.80232]
[1751660464793,0.7152,2492.5,2492.4,0.80232]
[1751660468987,1.51748,2492.5,2492.4,0.80232]
[1751660469188,0.7152,2492.5,2492.4,0.80232]
[1751660470893,1.51748,2492.5,2492.4,0.80232]
[1751660471093,0.7152,2492.5,2492.4,0.80232]
[1751660471292,1.47495,2492.7,2492.3,0.6662]
[1751660471593,1.47495,2492.7,2492.5,0.80226]
[1751660471594,0.80227,2492.6,2492.5,0.80226]
[1751660473986,0.6727,2492.7,2492.6,0.80225]
[1751660474192,1.47492,2492.7,2492.6,0.80225]
[1751660474588,0.6727,2492.7,2492.6,0.80225]
[1751660474991,1.47492,2492.7,2492.6,0.80225]
[1751660475596,0.6727,2492.7,2492.6,0.80225]
[1751660477196,1.72356546,2492.7,2492.6,0.80225]
[1751660478495,2.52578546,2492.7,2492.6,0.80225]
[1751660478995,1.72356546,2492.7,2492.6,0.80225]
[1751660479297,1.05086546,2492.7,2492.6,0.80225]
[1751660483201,0.7004,2493.0,2492.9,0.80216]
[1751660499215,2.152,2493.4,2493.3,0.80203]
[1751660499414,2.40061979,2493.4,2493.3,0.80203]
[1751660499614,1.05061979,2493.4,2493.3,0.80203]
[1751660500420,0.80204,2493.3,2493.2,0.80203]
[1751660501021,0.6557,2493.4,2493.3,0.80203]
[1751660501222,1.70615286,2493.4,2493.3,0.80203]
[1751660502318,0.6557,2493.4,2493.3,0.80203]
[1751660504625,0.7112,2493.5,2493.4,0.80199]
[1751660508122,0.7049,2493.9,2493.8,0.80187]
[1751660508428,2.55629412,2493.9,2493.8,0.80187]
[1751660508627,0.80191,2493.7,2493.6,0.80191]
[1751660508829,2.23498,2493.8,2493.7,0.8019]
[1751660509026,3.28449079,2493.8,2493.7,0.8019]
[1751660509532,0.80191,2493.7,2493.6,0.8019]
[1751660509927,0.80195,2493.6,2493.5,0.80194]
[1751660510130,2.23501,2493.7,2493.6,0.80193]
[1751660510534,1.4331,2493.7,2493.6,0.80193]
[1751660510732,1.50676,2493.9,2493.8,0.80187]
[1751660510928,2.55641905,2493.9,2493.8,0.80187]
[1751660511127,3.97051905,2493.9,2493.8,0.80187]
[1751660511633,0.80188,2493.8,2493.7,0.80188]
[1751660511831,1.85153905,2493.8,2493.7,0.80188]
[1751660512933,3.26563905,2493.8,2493.7,0.80188]
[1751660516637,0.80192,2493.7,2493.6,0.80191]
[1751660517032,1.85062614,2493.7,2493.6,0.80191]
[1751660517841,0.80192,2493.7,2493.6,0.80191]
[1751660518037,1.85063754,2493.7,2493.6,0.80191]
[1751660519042,1.85066842,2493.7,2493.6,0.80191]
[1751660520338,1.04874842,2493.7,2493.6,0.80191]
[1751660520539,1.85064842,2493.7,2493.6,0.80191]
[1751660520939,1.04874842,2493.7,2493.6,0.80191]
[1751660521139,0.7049,2493.9,2493.4,2.00499]
[1751660521341,1.0491401,2493.8,2493.7,0.80187]
[1751660522945,1.8510101,2493.8,2493.7,0.80187]
[1751660523244,3.2192101,2493.8,2493.7,0.80187]
[1751660525149,3.2192101,2493.8,2493.7,0.8019]
[1751660525444,2.4173401,2493.8,2493.3,0.7042]
[1751660525647,0.802,2493.4,2493.3,0.802]
[1751660525848,1.3632,2493.7,2493.3,0.802]
[1751660526043,0.80199,2493.4,2493.3,0.802]
[1751660526244,1.84780105,2493.4,2493.3,0.802]
[1751660526749,0.80204,2493.3,2493.2,0.80204]
[1751660526941,1.49514,2493.3,2493.2,0.80204]
[1751660527249,1.73902545,2493.3,2493.2,0.80204]
[1751660527444,0.6931,2493.3,2493.2,0.80204]
[1751660528045,1.73916064,2493.3,2493.2,0.80204]
[1751660528850,0.6931,2493.3,2493.2,0.80204]
[1751660529051,1.75038786,2493.3,2493.2,0.80204]
[1751660529447,0.6931,2493.3,2493.2,0.80204]
[1751660530251,1.75034627,2493.3,2493.2,0.80204]
[1751660534451,0.80207,2493.2,2493.1,0.80206]
[1751660534651,1.49515,2493.3,2493.2,0.80206]
[1751660534951,1.74816887,2493.3,2493.2,0.80206]
[1751660535355,2.55019887,2493.3,2493.2,0.80206]
[1751660535755,1.74816887,2493.3,2493.2,0.80206]
[1751660536464,2.55019887,2493.3,2493.2,0.80206]
[1751660536763,1.74816887,2493.3,2493.2,0.80206]
[1751660537560,2.55019887,2493.3,2493.2,0.80206]
[1751660538359,1.74816887,2493.3,2492.9,1.3162]
[1751660538659,0.80209,2493.1,2493.0,0.80211]
[1751660539963,0.80212,2493.0,2492.9,2.11834]
[1751660540167,0.80211,2493.1,2493.0,0.80211]
[1751660542863,0.6931,2493.3,2492.9,2.11833]
[1751660542864,0.80212,2493.0,2492.9,2.11833]
[1751660543164,0.80211,2493.1,2493.0,0.8021]
[1751660545962,0.80218,2492.9,2492.8,0.80215]
[1751660546264,0.80215,2493.0,2492.9,0.80214]
[1751660547067,2.00515,2493.2,2492.7,1.3384]
[1751660547270,0.80219,2492.8,2492.7,2.1406]
[1751660547860,0.80222,2492.7,2492.6,59.21802]
[1751660548066,0.6849,2493.0,2492.3,5.8452813]
[1751660548067,0.80226,2492.6,2492.5,0.80226]
[1751660548268,0.80228,2492.5,2492.4,14.14789]
[1751660548466,0.80228,2492.5,2492.4,2.84189]
[1751660549061,0.80228,2492.5,2492.4,0.69]
[1751660549863,0.80236,2492.3,2492.1,1.3496]
[1751660550163,0.6885,2492.7,2492.0,0.7095]
[1751660550369,0.6885,2492.2,2492.0,0.80244]
[1751660550565,0.80243,2492.1,2492.0,0.80244]
[1751660550766,0.6885,2492.2,2491.7,1.3005]
[1751660550966,0.80247,2492.0,2491.8,0.8025]
[1751660551367,0.80248,2491.9,2491.8,0.8025]
[1751660551867,0.6885,2492.2,2491.8,0.55444462]
[1751660552058,0.80244,2492.0,2491.9,0.55444462]
[1751660552961,0.80244,2492.0,2491.9,1.35692462]
[1751660554470,0.80244,2492.1,2491.9,0.80248]
[1751660555868,0.80244,2492.0,2491.9,0.80248]
[1751660558272,0.80249,2491.9,2491.8,0.80249]
[1751660558473,2.1176,2492.2,2491.6,2.7717]
[1751660558672,0.80246,2492.0,2491.9,0.80247]
[1751660560376,0.80245,2492.0,2491.9,0.80245]
[1751660561668,0.80249,2491.9,2491.8,0.80249]
[1751660562372,0.80247,2492.0,2491.9,0.80247]
[1751660562773,0.8025,2491.9,2491.8,0.8025]
[1751660564676,2.0061,2492.1,2491.6,1.3428]
[1751660564974,1.50633,2491.8,2491.7,0.80254]
[1751660565170,0.80254,2491.7,2491.6,1.3428]
[1751660565366,0.80254,2491.7,2491.4,1.3994]
[1751660565367,0.7038,2491.8,2491.4,1.3994]
[1751660565570,0.80264,2491.4,2491.3,0.80265]
[1751660565769,0.80264,2491.4,2491.2,1.50788]
[1751660565972,0.80262,2491.5,2491.3,0.80264]
[1751660566273,0.80264,2491.4,2491.3,0.80264]
[1751660566667,0.80259,2491.6,2491.4,0.80261]
[1751660566874,1.3807,2492.2,2491.4,2.0066]
[1751660567073,0.80248,2491.9,2491.8,0.8025]
[1751660567271,41.60248,2491.9,2491.8,0.8025]
[1751660567875,0.80251,2491.8,2491.7,0.80252]
[1751660568373,0.80251,2491.8,2491.6,1.3996]
[1751660568678,0.80254,2491.7,2491.6,2.20216]
[1751660569067,0.80253,2491.8,2491.7,0.80254]
[1751660569268,0.8025,2491.9,2491.8,0.80251]
[1751660570880,0.80252,2491.8,2491.7,0.80253]
[1751660571274,0.80247,2492.0,2491.9,0.80248]
[1751660572087,0.80252,2491.8,2491.7,0.80252]
[1751660573279,1.51049,2491.9,2491.8,0.80251]
[1751660574979,0.80251,2491.8,2491.7,0.80252]
[1751660575777,0.708,2491.9,2491.3,11.309]
[1751660576078,0.80263,2491.5,2491.4,0.80263]
[1751660577676,2.0963,2491.8,2491.3,11.9587]
[1751660577883,0.80259,2491.6,2491.5,0.80259]
[1751660578079,4.1026,2491.8,2491.3,11.9587]
[1751660578277,0.80264,2491.4,2491.3,12.76135]
[1751660578477,1.49862,2491.5,2491.4,0.80264]
[1751660579984,0.80264,2491.4,2491.3,12.76135]
[1751660580184,1.49863,2491.5,2491.4,0.80264]
[1751660580385,2.60728832,2491.5,2491.4,0.80264]
[1751660581380,1.49863,2491.5,2491.4,0.80264]
[1751660581579,2.60717639,2491.5,2491.4,0.80264]
[1751660583789,0.80265,2491.4,2491.3,0.80265]
[1751660583990,0.80268,2491.3,2491.2,0.80268]
[1751660584189,0.696,2491.5,2490.9,13.3389]
[1751660584484,0.696,2491.5,2491.4,0.80264]
[1751660584485,1.49862,2491.5,2491.4,0.80264]
[1751660584686,2.60768728,2491.5,2491.4,0.80264]
[1751660584887,0.80265,2491.4,2491.3,0.80265]
[1751660585386,0.80268,2491.3,2491.2,0.80268]
[1751660585585,0.696,2491.5,2491.1,1.3327]
[1751660585586,0.80266,2491.4,2491.3,0.80266]
[1751660586190,1.49863,2491.5,2491.4,0.80264]
[1751660586382,2.6028416,2491.5,2491.4,0.80264]
[1751660586583,0.80268,2491.3,2491.2,0.80268]
[1751660590693,0.80272,2491.2,2491.1,0.80271]
[1751660590992,0.80269,2491.3,2491.2,0.80268]
[1751660592293,0.80266,2491.4,2491.3,0.80265]
[1751660593394,1.90817609,2491.4,2491.3,0.80265]
[1751660598504,0.80268,2491.3,2491.2,0.80267]
[1751660598802,1.90819609,2491.3,2491.2,0.80267]
[1751660600097,1.10551609,2491.3,2491.2,0.80267]
[1751660600497,42.80609,2492.1,2491.2,2.00675]
[1751660600697,0.80259,2491.6,2491.5,0.80258]
[1751660600901,1.90851626,2491.6,2491.5,0.80258]
[1751660601999,1.10592626,2491.6,2491.5,0.80258]
[1751660602401,1.10284529,2491.6,2491.5,0.80261]
[1751660602601,1.90541529,2491.6,2491.5,1.47301]
[1751660602802,1.10284529,2491.6,2491.5,1.47301]
[1751660603604,1.90541529,2491.6,2491.5,1.47301]
[1751660604005,1.10284529,2491.6,2491.5,1.47301]
[1751660604605,1.90541529,2491.6,2491.5,1.47301]
[1751660604801,1.10284529,2491.6,2491.5,1.47301]
[1751660608401,41.4549,2492.0,2491.9,0.80248]
[1751660608605,1.74700004,2492.0,2491.9,0.80248]
[1751660609912,1.09210004,2492.0,2491.9,0.80248]
[1751660612312,0.80241,2492.1,2492.0,0.80244]
[1751660612512,1.89215927,2492.1,2492.0,0.80244]
[1751660612714,0.80246,2492.0,2491.9,0.80245]
[1751660613413,1.89223531,2492.0,2491.9,0.80245]
[1751660614315,0.80246,2492.0,2491.9,0.80245]
[1751660615316,0.80249,2491.9,2491.8,0.80249]
[1751660615716,0.80251,2491.8,2491.6,0.6691]
[1751660616016,1.49121,2491.8,2491.7,0.80254]
[1751660616217,0.6887,2491.8,2491.7,0.80254]
[1751660616417,1.49121,2491.8,2491.7,0.80254]
[1751660617216,0.80254,2491.7,2491.6,1.47165]
[1751660617520,0.80254,2491.7,2491.6,0.80255]
[1751660618118,1.49123,2491.8,2491.7,0.80254]
[1751660625125,1.49121,2491.8,2491.7,0.80254]
[1751660634931,0.6887,2491.8,2491.7,0.80254]
[1751660635333,1.77187855,2491.8,2491.7,0.80254]
[1751660635828,0.6533,2492.2,2491.9,0.80244]
[1751660636034,1.75302306,2492.1,2492.0,0.80244]
[1751660636235,2.55545306,2492.1,2492.0,0.80244]
[1751660639940,2.54888862,2492.1,2492.0,0.80244]
[1751660641940,1.74645862,2492.1,2492.0,0.80244]
[1751660643340,2.54886862,2492.1,2492.0,0.80244]
[1751660647738,1.74645862,2492.1,2492.0,0.80244]
[1751660647940,2.54886862,2492.1,2492.0,0.80244]
[1751660649642,1.74645862,2492.1,2492.0,0.80244]
[1751660650142,2.54886862,2492.1,2492.0,0.80244]
[1751660651144,1.74645862,2492.1,2492.0,0.80244]
[1751660651642,2.54886862,2492.1,2492.0,0.80244]
[1751660653345,1.74645862,2492.1,2492.0,0.80244]
[1751660653947,2.54886862,2492.1,2492.0,0.80244]
[1751660655245,1.07655862,2492.1,2492.0,5.80244]
[1751660655449,1.48227,2492.6,2492.5,0.80228]
[1751660656545,0.80229,2492.5,2492.1,4.71101]
[1751660656750,0.80229,2492.5,2492.4,0.80229]
[1751660656952,1.48226,2492.6,2492.5,0.80228]
[1751660657351,0.80229,2492.5,2492.4,0.80229]
[1751660658157,0.80232,2492.4,2492.3,0.80233]
[1751660658351,0.80231,2492.5,2492.4,0.80232]
[1751660658654,1.48226,2492.6,2492.5,0.80228]
[1751660659352,0.80229,2492.5,2492.4,0.80229]
[1751660659956,0.68,2492.6,2492.1,1.3855]
[1751660660253,0.80234,2492.4,2492.3,0.80235]
[1751660661154,0.80239,2492.2,2492.1,0.80238]
[1751660661454,0.80238,2492.2,2492.1,0.80238]
[1751660662057,0.80239,2492.2,2492.1,0.80239]
[1751660662957,1.45557,2492.3,2492.2,0.80238]
[1751660663655,0.8024,2492.2,2492.1,0.80239]
[1751660664055,0.80243,2492.1,2492.0,0.80242]
[1751660665654,0.8024,2492.2,2492.1,0.8024]
[1751660667254,0.80254,2491.7,2491.6,3.18176946]
[1751660667557,0.80253,2491.8,2491.7,0.80252]
[1751660667757,0.80259,2491.6,2491.5,0.80258]
[1751660668554,0.80257,2491.7,2491.6,0.80256]
[1751660668956,0.8026,2491.6,2491.5,0.80259]
[1751660673854,0.80255,2491.7,2491.6,0.80255]
[1751660675760,0.80259,2491.6,2491.5,0.80258]
[1751660676159,0.80256,2491.7,2491.6,0.80255]
[1751660679465,0.80256,2491.7,2491.5,0.80259]
[1751660679765,0.80257,2491.6,2491.5,0.80259]
[1751660679962,0.80261,2491.5,2491.4,2.86612]
[1751660680261,0.80259,2491.6,2491.5,0.8026]
[1751660684166,2.00636,2491.7,2491.1,11.298]
[1751660684362,0.8027,2491.3,2491.2,0.80268]
[1751660684666,0.80269,2491.3,2491.2,0.80268]
[1751660689380,0.80263,2491.5,2491.4,0.80262]
[1751660689578,40.8,2491.7,2491.2,3.41384]
[1751660689873,2.00593,2492.3,2491.0,11.9742]
[1751660689874,0.7156,2492.0,2491.9,0.80248]
[1751660690071,0.6721,2492.4,2492.3,0.80235]
[1751660690271,1.08792696,2492.4,2492.0,2.00612]
[1751660690477,0.7156,2492.5,2492.4,0.80232]
[1751660690781,1.80355234,2492.5,2492.4,0.80232]
[1751660691180,1.08795234,2492.5,2492.4,0.80232]
[1751660691477,0.80225,2492.6,2492.3,1.3934]
[1751660691673,0.80225,2492.6,2492.4,0.80229]
[1751660691875,0.80225,2492.6,2492.5,0.80228]
[1751660692076,0.80224,2492.7,2492.6,0.80225]
[1751660692276,1.89009078,2492.7,2492.6,0.80225]
[1751660692677,1.08785078,2492.7,2492.6,0.80225]
[1751660693478,42.31107,2492.9,2492.3,3.39922]
[1751660693674,0.6975,2493.1,2493.0,0.80212]
[1751660693875,0.6975,2493.1,2492.5,2.00572]
[1751660693876,0.80204,2493.3,2493.1,0.80206]
[1751660694680,0.80203,2493.3,2492.8,1.9945]
[1751660694879,1.51091,2493.4,2492.8,3.99993]
[1751660695075,1.51091,2493.4,2493.2,0.80204]
[1751660696074,1.51091,2493.4,2493.3,0.80203]
[1751660696276,0.7089,2493.4,2493.3,0.80203]
[1751660696581,1.51089,2493.4,2493.2,0.80204]
[1751660696782,0.7089,2493.4,2493.2,0.80204]
[1751660696982,0.80203,2493.3,2493.2,0.80204]
[1751660697282,1.51092,2493.4,2493.2,0.80204]
[1751660697482,1.51092,2493.4,2493.1,0.80208]
[1751660697682,0.80204,2493.3,2493.1,0.80208]
[1751660698682,0.80206,2493.2,2493.1,0.80208]
[1751660699487,0.80206,2493.2,2493.0,0.8021]
[1751660699684,0.80209,2493.1,2493.0,0.8021]
[1751660700289,0.80215,2493.0,2492.8,1.9945]
[1751660700480,0.80216,2492.9,2492.8,1.9945]
[1751660700680,0.8021,2493.1,2493.0,0.80211]
[1751660701681,0.80212,2493.0,2492.8,2.79668]
[1751660701878,0.80216,2492.9,2492.8,2.79668]
[1751660702282,0.80214,2493.0,2492.8,2.79668]
[1751660702583,0.80216,2492.9,2492.8,2.79668]
[1751660702784,0.80219,2492.8,2492.7,0.8022]
[1751660702981,2.00507,2493.3,2492.5,0.80226]
[1751660703186,0.80225,2492.6,2492.5,0.80226]
[1751660703381,0.80222,2492.8,2492.4,13.3555]
[1751660703587,0.80223,2492.7,2492.6,0.80224]
[1751660704288,0.711,2492.9,2492.7,0.80221]
[1751660704490,0.80219,2492.8,2492.7,0.80221]
[1751660704692,0.80219,2492.8,2492.6,0.80223]
[1751660705293,0.80219,2492.8,2492.7,0.80222]
[1751660706294,1.51317,2492.9,2492.8,0.80219]
[1751660706796,0.80219,2492.8,2492.7,0.8022]
[1751660706995,1.51318,2492.9,2492.8,0.80219]
[1751660708097,1.51316,2492.9,2492.8,0.80219]
[1751660709400,0.711,2492.9,2492.8,0.80219]
[1751660710399,0.6975,2493.5,2493.4,0.80199]
[1751660711500,1.49948,2493.5,2493.4,0.80199]
[1751660712390,0.80201,2493.4,2493.3,0.80201]
[1751660713102,1.49948,2493.5,2493.4,0.80199]
[1751660713799,0.80202,2493.4,2493.3,0.80201]
[1751660714495,1.49949,2493.5,2493.4,0.80199]
[1751660716602,0.80201,2493.4,2493.3,0.802]
[1751660717504,0.80202,2493.4,2493.3,0.80203]
[1751660718198,2.93508,2493.5,2493.4,0.80199]
[1751660718602,0.80201,2493.4,2493.3,0.802]
[1751660721709,0.80206,2493.3,2493.2,0.80204]
[1751660724007,0.80202,2493.4,2493.3,0.80201]
[1751660724810,0.80205,2493.3,2493.2,0.80204]
[1751660726910,2.1331,2493.5,2493.1,2.00523]
[1751660727213,0.80201,2493.4,2493.3,0.802]
[1751660734411,1.49948,2493.5,2493.4,0.80199]
[1751660734608,2.58497775,2493.5,2493.4,0.80199]
[1751660734812,1.08549775,2493.5,2493.4,0.80199]
[1751660735017,0.711,2493.6,2493.5,0.80196]
[1751660735211,1.79644998,2493.6,2493.5,0.80196]
[1751660738916,12.79004,2493.9,2493.8,0.80187]
[1751660739212,14.53321588,2493.9,2493.8,0.80187]
[1751660739413,3.24421588,2493.9,2493.8,0.80187]
[1751660739906,2.44237588,2493.9,2493.8,0.80187]
[1751660740314,2.44283269,2493.9,2493.8,0.80187]
[1751660740515,3.24466269,2493.9,2493.8,0.80187]
[1751660741417,0.80188,2493.8,2493.7,0.80187]
[1751660741612,1.88651269,2493.8,2493.7,0.80187]
[1751660743417,0.80188,2493.8,2493.7,0.80187]
[1751660743618,1.88531497,2493.8,2493.7,0.80187]
[1751660743821,1.08343497,2493.8,2493.5,1.3679]
[1751660744122,0.80189,2493.8,2493.7,0.80189]
[1751660744620,2.16006,2493.9,2493.8,0.80187]
[1751660744824,3.24334236,2493.9,2493.8,0.80187]
[1751660745520,0.80189,2493.8,2493.7,0.80188]
[1751660745717,1.88506144,2493.8,2493.7,0.80188]
[1751660747022,0.8019,2493.7,2493.6,0.80191]
[1751660749422,0.80194,2493.6,2493.5,0.80194]
[1751660749722,0.80191,2493.7,2493.6,0.80191]
[1751660752222,0.80194,2493.6,2493.5,0.80194]
[1751660755424,0.80191,2493.7,2493.6,0.80191]
[1751660761231,0.80189,2493.8,2493.7,0.80188]
[1751660761431,1.88509007,2493.8,2493.7,0.80188]
[1751660763932,1.08320007,2493.8,2493.4,2.0409]
[1751660764139,1.08372563,2493.7,2493.4,2.0409]
[1751660764437,0.80191,2493.7,2493.6,0.80189]
[1751660764932,1.88565633,2493.7,2493.6,0.80189]
[1751660765145,1.08374633,2493.7,2493.6,0.80189]
[1751660765745,0.80189,2493.8,2493.7,0.8019]
[1751660765943,1.87822924,2493.8,2493.7,0.8019]
[1751660767642,1.87820924,2493.8,2493.7,0.8019]
[1751660767937,0.80192,2493.7,2493.6,0.8019]
[1751660768138,1.87825924,2493.7,2493.6,0.8019]
[1751660774354,1.07633924,2493.7,2493.6,0.8019]
[1751660774653,1.87823924,2493.7,2493.6,0.8019]
[1751660776354,0.80194,2493.6,2493.5,0.80194]
[1751660776553,0.80191,2493.7,2493.6,0.80191]
[1751660776955,1.8791425,2493.7,2493.6,0.80191]
[1751660777154,1.0772425,2493.7,2493.6,0.80191]
[1751660778054,1.0772425,2493.7,2493.6,1.48851]
[1751660780959,3.2078,2494.0,2493.9,0.80183]
[1751660781161,4.28509134,2494.0,2493.7,1.3387]
[1751660781356,3.2078,2494.0,2493.9,0.80183]
[1751660781657,4.28482514,2494.0,2493.9,0.80183]
[1751660782059,5.79252514,2494.0,2493.9,0.80183]
[1751660782259,0.80183,2493.9,2493.8,0.80185]
[1751660782957,3.2078,2494.0,2493.9,0.80183]
[1751660783158,3.2078,2494.0,2493.9,2.79033]
[1751660783357,3.2078,2494.0,2493.9,7.79033]
[1751660784160,3.2078,2494.0,2493.9,10.97209946]
[1751660784453,1e-05,2494.0,2493.9,7.79033]
[1751660784657,1e-05,2494.0,2493.9,10.97209946]
[1751660785462,1e-05,2494.0,2493.9,7.79033]
[1751660785863,1e-05,2494.0,2493.9,10.97209946]
[1751660787258,1e-05,2494.0,2493.9,7.79033]
[1751660789456,1e-05,2494.0,2493.9,55.44833]
[1751660789966,1e-05,2494.0,2493.9,50.44833]
[1751660793969,1e-05,2494.0,2493.9,2.79033]
[1751660794168,1e-05,2494.0,2493.9,50.44533]
[1751660797571,1e-05,2494.0,2493.9,2.79033]
[1751660797773,1e-05,2494.0,2493.9,0.80183]
[1751660797972,1e-05,2494.0,2493.9,37.17983]
[1751660798167,1e-05,2494.0,2493.9,0.80183]
[1751660798473,1e-05,2494.0,2493.9,37.17983]
[1751660798773,1.41891,2494.0,2493.9,37.17983]
[1751660798974,2.07451,2494.0,2493.9,37.17983]
[1751660799574,2.07451,2494.0,2493.9,0.80183]
[1751660799774,2.07451,2494.0,2493.9,37.17983]
[1751660800073,2.87631,2494.0,2493.9,37.17983]
[1751660800872,2.87631,2494.0,2493.9,37.18083]
[1751660802474,2.87631,2494.0,2493.9,0.80183]
[1751660802674,2.87631,2494.0,2493.9,37.18083]
[1751660803177,2.87631,2494.0,2493.9,0.80183]
[1751660803371,2.07451,2494.0,2493.9,37.18083]
[1751660803572,2.87631,2494.0,2493.9,37.18083]
[1751660804677,2.07451,2494.0,2493.9,37.18083]
[1751660805178,2.75301,2494.0,2493.9,37.18083]
[1751660805674,3.55481,2494.0,2493.9,37.18083]
[1751660806376,2.75301,2494.0,2493.9,0.80183]
[1751660807471,0.80184,2493.9,2493.8,0.80185]
[1751660807769,2.13124,2493.9,2493.8,0.80185]
[1751660807976,1.3294,2493.9,2493.6,94.131]
[1751660808175,2.13129,2493.8,2493.7,0.8019]
[1751660809679,0.8019,2493.7,2493.6,37.18091]
[1751660809880,2.7971,2493.7,2493.6,37.17993]
[1751660812580,3.599,2493.7,2493.6,37.17993]
[1751660813080,2.7971,2493.7,2493.6,37.17993]
[1751660814183,3.599,2493.7,2493.6,37.17993]
[1751660814479,2.7971,2493.7,2493.6,37.17993]
[1751660815279,3.599,2493.7,2493.6,37.17993]
[1751660815881,2.7971,2493.7,2493.6,37.17993]
[1751660816780,3.599,2493.7,2493.6,37.17993]
[1751660817982,2.7971,2493.7,2493.6,37.17993]
[1751660818282,1.3852,2493.7,2493.6,37.17993]
[1751660818777,0.7126,2493.7,2493.6,37.17993]
[1751660819182,0.7126,2493.7,2493.6,0.80193]
[1751660819379,0.7126,2493.7,2493.6,37.18193]
[1751660820178,0.65771,2494.0,2493.9,0.80183]
[1751660820482,1.45952,2494.0,2493.9,0.80183]
[1751660820979,1.45952,2494.0,2493.8,0.80185]
[1751660821180,1.50695,2493.9,2493.8,0.80185]
[1751660821483,2.90295,2493.9,2493.8,0.80185]
[1751660821885,2.1011,2493.9,2493.5,1.3671]
[1751660822076,0.80188,2493.8,2493.7,0.80188]
[1751660822281,2.90295,2493.9,2493.8,0.80187]
[1751660823380,2.1011,2493.9,2493.8,0.80187]
[1751660823588,0.65771,2494.0,2493.6,36.38]
[1751660823589,1e-05,2494.0,2493.9,0.80183]
[1751660823783,1e-05,2494.0,2493.9,37.18183]
[1751660823981,1e-05,2494.0,2493.9,38.48563]
[1751660826083,1e-05,2494.0,2493.9,54.75863]
[1751660826480,1e-05,2494.0,2493.9,49.75863]
[1751660829589,1e-05,2494.0,2493.9,54.75863]
[1751660832790,1e-05,2494.0,2493.9,2.10563]
[1751660832991,1e-05,2494.0,2493.9,49.74863]
[1751660834790,1e-05,2494.0,2493.9,48.44083]
[1751660834995,1e-05,2494.0,2493.9,49.81083]
[1751660838590,1e-05,2494.0,2493.9,2.17183]
[1751660838796,1e-05,2494.0,2493.9,49.80883]
[1751660841098,1e-05,2494.0,2493.9,52.99059946]
[1751660841398,1e-05,2494.0,2493.9,49.80883]
[1751660841598,0.19383843,2495.3,2494.1,4.00883]
[1751660841796,2.40486677,2495.2,2495.1,0.80145]
[1751660841996,3.55282,2495.2,2495.1,0.80145]
[1751660842199,0.80145,2495.1,2495.0,0.80146]
[1751660842399,2.18505,2495.1,2495.0,0.80146]
[1751660842697,7.18505,2495.1,2495.0,0.80146]
[1751660843095,7.18505,2495.1,2494.9,37.16649]
[1751660843301,1.435,2495.0,2494.9,37.16651]
[1751660844601,1.435,2495.0,2494.9,0.80151]
[1751660844899,2.23648,2495.0,2494.9,0.80151]
[1751660845293,0.80151,2494.9,2494.8,0.80152]
[1751660845492,2.23651,2494.9,2494.8,0.80152]
[1751660845999,6.435,2494.9,2494.6,36.363]
[1751660846203,2.069,2494.8,2494.7,0.80156]
[1751660847103,2.87054,2494.8,2494.7,0.80156]
[1751660851101,0.80162,2494.6,2494.5,37.16362]
[1751660851309,0.80162,2494.6,2494.5,0.80162]
[1751660851807,1.3685,2494.6,2494.5,0.80162]
[1751660852499,2.17011,2494.6,2494.5,0.80162]